[Event "Titled Tuesday Blitz March 01 Early 2022"]
[White "Kukula, Pawel"]
[Black "Muzzi, Eduardo"]
[WhiteFideId "1115081"]
[BlackFideId "3001253"]
[WhiteElo "2203"]
[BlackElo "1932"]
[Result "1/2-1/2"]
[Round "04"]
[TimeControl "180+1"]
[Date "2022.03.01"]
[WhiteClock "0:00:20"]
[BlackClock "0:00:06"]

1. e4 {[%clk 0:02:57]}  e6 {[%clk 0:03:00]} 2. Nf3 {[%clk 0:02:52]}  d5 {[%clk 0:03:01]} 3. e5 {[%clk 0:02:53]}  c5 {[%clk 0:03:01]} 4. b4 {[%clk 0:02:54]}  cxb4 {[%clk 0:03:00]} 5. a3 {[%clk 0:02:54]}  Nc6 {[%clk 0:03:00]} 6. axb4 {[%clk 0:02:54]}  Bxb4 {[%clk 0:03:00]} 7. c3 {[%clk 0:02:54]}  Bf8 {[%clk 0:03:01]} 8. d4 {[%clk 0:02:55]}  Nge7 {[%clk 0:03:01]} 9. Bd3 {[%clk 0:02:55]}  Nf5 {[%clk 0:03:00]} 10. O-O {[%clk 0:02:51]}  Be7 {[%clk 0:03:00]} 11. Na3 {[%clk 0:02:51]}  O-O {[%clk 0:02:59]} 12. Nc2 {[%clk 0:02:48]}  g6 {[%clk 0:02:46]} 13. g4 {[%clk 0:02:29]}  Nh4 {[%clk 0:02:46]} 14. Nxh4 {[%clk 0:02:29]}  Bxh4 {[%clk 0:02:46]} 15. f4 {[%clk 0:02:29]}  f6 {[%clk 0:02:29]} 16. Be3 {[%clk 0:02:12]}  fxe5 {[%clk 0:02:26]} 17. dxe5 {[%clk 0:02:13]}  g5 {[%clk 0:02:17]} 18. Nd4 {[%clk 0:01:52]}  Bd7 {[%clk 0:01:44]} 19. Qe2 {[%clk 0:01:23]}  Qe7 {[%clk 0:01:31]} 20. Ra2 {[%clk 0:00:46]}  Rf7 {[%clk 0:01:10]} 21. fxg5 {[%clk 0:00:41]}  Rxf1+ {[%clk 0:01:07]} 22. Qxf1 {[%clk 0:00:42]}  Bxg5 {[%clk 0:01:00]} 23. Bxg5 {[%clk 0:00:40]}  Qxg5 {[%clk 0:01:00]} 24. Rf2 {[%clk 0:00:39]}  Nxe5 {[%clk 0:00:50]} 25. Be2 {[%clk 0:00:37]}  Qe7 {[%clk 0:00:18]} 26. Rf6 {[%clk 0:00:30]}  Rf8 {[%clk 0:00:18]} 27. g5 {[%clk 0:00:31]}  Rxf6 {[%clk 0:00:11]} 28. gxf6 {[%clk 0:00:32]}  Qf7 {[%clk 0:00:11]} 29. Qh3 {[%clk 0:00:26]}  Ng6 {[%clk 0:00:11]} 30. Bh5 {[%clk 0:00:21]}  Qxf6 {[%clk 0:00:10]} 31. Qg4 {[%clk 0:00:21]}  Kh8 {[%clk 0:00:10]} 32. Qg3 {[%clk 0:00:18]}  e5 {[%clk 0:00:09]} 33. Nf3 {[%clk 0:00:17]}  e4 {[%clk 0:00:09]} 34. Ng5 {[%clk 0:00:17]}  Qb6+ {[%clk 0:00:08]} 35. Kg2 {[%clk 0:00:17]}  Qf6 {[%clk 0:00:08]} 36. Be2 {[%clk 0:00:16]}  Be8 {[%clk 0:00:08]} 37. h4 {[%clk 0:00:16]}  Nf4+ {[%clk 0:00:08]} 38. Kf2 {[%clk 0:00:16]}  Nxe2+ {[%clk 0:00:08]} 39. Kxe2 {[%clk 0:00:17]}  Bh5+ {[%clk 0:00:08]} 40. Kd2 {[%clk 0:00:17]}  Qg6 {[%clk 0:00:05]} 41. Qe5+ {[%clk 0:00:16]}  Qg7 {[%clk 0:00:05]} 42. Qxd5 {[%clk 0:00:15]}  Be8 {[%clk 0:00:04]} 43. Qe6 {[%clk 0:00:15]}  Qd7+ {[%clk 0:00:04]} 44. Qxd7 {[%clk 0:00:14]}  Bxd7 {[%clk 0:00:05]} 45. Nf7+ {[%clk 0:00:15]}  Kg7 {[%clk 0:00:05]} 46. Ne5 {[%clk 0:00:16]}  Be6 {[%clk 0:00:04]} 47. Ke3 {[%clk 0:00:16]}  Bd5 {[%clk 0:00:02]} 48. c4 {[%clk 0:00:14]}  Bc6 {[%clk 0:00:02]} 49. Ng4 {[%clk 0:00:14]}  Kg6 {[%clk 0:00:02]} 50. Nf2 {[%clk 0:00:15]}  Kf5 {[%clk 0:00:02]} 51. h5 {[%clk 0:00:15]}  Kg5 {[%clk 0:00:02]} 52. Nh3+ {[%clk 0:00:14]}  Kxh5 {[%clk 0:00:02]} 53. Nf4+ {[%clk 0:00:15]}  Kg5 {[%clk 0:00:02]} 54. Ne6+ {[%clk 0:00:16]}  Kf5 {[%clk 0:00:02]} 55. Nf8 {[%clk 0:00:16]}  h5 {[%clk 0:00:01]} 56. Kf2 {[%clk 0:00:13]}  h4 {[%clk 0:00:01]} 57. Nh7 {[%clk 0:00:13]}  Kg4 {[%clk 0:00:01]} 58. Nf6+ {[%clk 0:00:13]}  Kf4 {[%clk 0:00:01]} 59. Nh5+ {[%clk 0:00:12]}  Kg4 {[%clk 0:00:01]} 60. Nf6+ {[%clk 0:00:13]}  Kf5 {[%clk 0:00:02]} 61. Nh5 {[%clk 0:00:13]}  Kg5 {[%clk 0:00:02]} 62. Ng7 {[%clk 0:00:13]}  h3 {[%clk 0:00:02]} 63. Kg3 {[%clk 0:00:13]}  e3 {[%clk 0:00:02]} 64. Ne6+ {[%clk 0:00:14]}  Kf5 {[%clk 0:00:02]} 65. Nf4 {[%clk 0:00:15]}  Ke4 {[%clk 0:00:02]} 66. Nxh3 {[%clk 0:00:15]}  Kd3 {[%clk 0:00:02]} 67. Nf4+ {[%clk 0:00:15]}  Kd2 {[%clk 0:00:02]} 68. c5 {[%clk 0:00:03]}  e2 {[%clk 0:00:03]} 69. Nxe2 {[%clk 0:00:03]}  Kxe2 {[%clk 0:00:03]} 70. Kf4 {[%clk 0:00:04]}  Kd3 {[%clk 0:00:04]} 71. Ke5 {[%clk 0:00:05]}  Kc4 {[%clk 0:00:04]} 72. Kd6 {[%clk 0:00:06]}  Kb5 {[%clk 0:00:05]} 73. Ke5 {[%clk 0:00:06]}  a5 {[%clk 0:00:06]} 74. Kd4 {[%clk 0:00:07]}  a4 {[%clk 0:00:07]} 75. Kc3 {[%clk 0:00:08]}  Ka5 {[%clk 0:00:07]} 76. Kb2 {[%clk 0:00:08]}  Kb5 {[%clk 0:00:08]} 77. Ka3 {[%clk 0:00:09]}  Kxc5 {[%clk 0:00:09]} 78. Kb2 {[%clk 0:00:09]}  b5 {[%clk 0:00:09]} 79. Ka3 {[%clk 0:00:10]}  b4+ {[%clk 0:00:10]} 80. Kb2 {[%clk 0:00:11]}  Kc4 {[%clk 0:00:11]} 81. Ka1 {[%clk 0:00:12]}  a3 {[%clk 0:00:12]} 82. Ka2 {[%clk 0:00:12]}  Ba4 {[%clk 0:00:12]} 83. Ka1 {[%clk 0:00:13]}  Kc3 {[%clk 0:00:12]} 84. Ka2 {[%clk 0:00:14]}  Bb3+ {[%clk 0:00:12]} 85. Ka1 {[%clk 0:00:15]}  Ba4 {[%clk 0:00:13]} 86. Ka2 {[%clk 0:00:15]}  Bb5 {[%clk 0:00:13]} 87. Ka1 {[%clk 0:00:16]}  Bc4 {[%clk 0:00:13]} 88. Kb1 {[%clk 0:00:16]}  Kd2 {[%clk 0:00:13]} 89. Ka1 {[%clk 0:00:17]}  Kc3 {[%clk 0:00:14]} 90. Kb1 {[%clk 0:00:18]}  a2+ {[%clk 0:00:13]} 91. Ka1 {[%clk 0:00:18]}  Kd2 {[%clk 0:00:13]} 92. Kb2 {[%clk 0:00:18]}  b3 {[%clk 0:00:13]} 93. Ka1 {[%clk 0:00:19]}  b2+ {[%clk 0:00:08]} 94. Kxb2 {[%clk 0:00:19]}  Kd3 {[%clk 0:00:08]} 95. Ka1 {[%clk 0:00:20]}  Kc2 {[%clk 0:00:06]} 1/2-1/2


[Site "https://www.chess.com"]

[Event "Titled Tuesday Blitz March 01 Early 2022"]
[White "Kushko, Dmitriy"]
[Black "Samant Aditya S"]
[WhiteFideId "14162261"]
[BlackFideId "35080580"]
[WhiteElo "2225"]
[BlackElo "1916"]
[Result "1/2-1/2"]
[Round "04"]
[TimeControl "180+1"]
[Date "2022.03.01"]
[WhiteClock "0:00:06"]
[BlackClock "0:00:06"]

1. Nf3 {[%clk 0:03:00]}  d5 {[%clk 0:02:58]} 2. g3 {[%clk 0:03:00]}  Bg4 {[%clk 0:02:57]} 3. Bg2 {[%clk 0:03:00]}  Nd7 {[%clk 0:02:57]} 4. h3 {[%clk 0:02:59]}  Bxf3 {[%clk 0:02:53]} 5. Bxf3 {[%clk 0:03:00]}  Ngf6 {[%clk 0:02:54]} 6. O-O {[%clk 0:02:59]}  e5 {[%clk 0:02:53]} 7. d3 {[%clk 0:02:58]}  c6 {[%clk 0:02:48]} 8. Nc3 {[%clk 0:02:58]}  Bc5 {[%clk 0:02:36]} 9. e4 {[%clk 0:02:56]}  dxe4 {[%clk 0:02:36]} 10. Nxe4 {[%clk 0:02:57]}  Nxe4 {[%clk 0:02:37]} 11. dxe4 {[%clk 0:02:58]}  O-O {[%clk 0:02:37]} 12. c3 {[%clk 0:02:52]}  Qe7 {[%clk 0:02:33]} 13. Kg2 {[%clk 0:02:46]}  Rfd8 {[%clk 0:02:29]} 14. Qc2 {[%clk 0:02:43]}  Nf8 {[%clk 0:02:26]} 15. Bd2 {[%clk 0:02:39]}  a5 {[%clk 0:02:25]} 16. Rad1 {[%clk 0:02:38]}  Ne6 {[%clk 0:02:25]} 17. h4 {[%clk 0:02:36]}  Rd7 {[%clk 0:02:17]} 18. Bc1 {[%clk 0:02:32]}  Rad8 {[%clk 0:02:15]} 19. Rxd7 {[%clk 0:02:32]}  Rxd7 {[%clk 0:02:16]} 20. Rd1 {[%clk 0:02:31]}  Qd8 {[%clk 0:02:09]} 21. Rxd7 {[%clk 0:02:30]}  Qxd7 {[%clk 0:02:10]} 22. Qd1 {[%clk 0:02:27]}  Qxd1 {[%clk 0:02:08]} 23. Bxd1 {[%clk 0:02:28]}  Kf8 {[%clk 0:02:08]} 24. Kf3 {[%clk 0:02:27]}  Ke7 {[%clk 0:02:08]} 25. h5 {[%clk 0:02:24]}  h6 {[%clk 0:02:01]} 26. Ke2 {[%clk 0:02:24]}  Nf8 {[%clk 0:02:00]} 27. f4 {[%clk 0:02:21]}  Nd7 {[%clk 0:01:59]} 28. Kd3 {[%clk 0:01:49]}  Bf2 {[%clk 0:01:57]} 29. g4 {[%clk 0:01:32]}  Bg3 {[%clk 0:01:52]} 30. fxe5 {[%clk 0:01:28]}  Bxe5 {[%clk 0:01:41]} 31. Be3 {[%clk 0:01:19]}  Bf6 {[%clk 0:01:35]} 32. b4 {[%clk 0:01:07]}  Ne5+ {[%clk 0:01:30]} 33. Kc2 {[%clk 0:01:07]}  Kd7 {[%clk 0:01:13]} 34. Be2 {[%clk 0:01:02]}  axb4 {[%clk 0:01:11]} 35. cxb4 {[%clk 0:01:02]}  b5 {[%clk 0:01:12]} 36. Kb3 {[%clk 0:01:02]}  Ke6 {[%clk 0:01:03]} 37. a4 {[%clk 0:00:59]}  bxa4+ {[%clk 0:01:04]} 38. Kxa4 {[%clk 0:01:00]}  Nd7 {[%clk 0:01:05]} 39. Bc4+ {[%clk 0:00:59]}  Ke7 {[%clk 0:01:05]} 40. b5 {[%clk 0:00:35]}  cxb5+ {[%clk 0:01:03]} 41. Kxb5 {[%clk 0:00:35]}  Ne5 {[%clk 0:01:00]} 42. Be2 {[%clk 0:00:34]}  Ke6 {[%clk 0:00:57]} 43. Bf4 {[%clk 0:00:32]}  Nd7 {[%clk 0:00:50]} 44. Bc4+ {[%clk 0:00:32]}  Ke7 {[%clk 0:00:51]} 45. Be2 {[%clk 0:00:26]}  Be5 {[%clk 0:00:48]} 46. Be3 {[%clk 0:00:26]}  Kf6 {[%clk 0:00:43]} 47. Kc6 {[%clk 0:00:24]}  Nf8 {[%clk 0:00:43]} 48. Bc4 {[%clk 0:00:20]}  Ne6 {[%clk 0:00:38]} 49. Kd7 {[%clk 0:00:17]}  Nf8+ {[%clk 0:00:25]} 50. Kc6 {[%clk 0:00:16]}  Bb2 {[%clk 0:00:19]} 51. Bf4 {[%clk 0:00:09]}  Ne6 {[%clk 0:00:17]} 52. Bxe6 {[%clk 0:00:07]}  Kxe6 {[%clk 0:00:18]} 53. Kc5 {[%clk 0:00:05]}  Be5 {[%clk 0:00:18]} 54. Be3 {[%clk 0:00:05]}  Bb8 {[%clk 0:00:18]} 55. Kc4 {[%clk 0:00:05]}  Be5 {[%clk 0:00:13]} 56. Kd3 {[%clk 0:00:05]}  Kf6 {[%clk 0:00:13]} 57. Ke2 {[%clk 0:00:06]}  Bd6 {[%clk 0:00:13]} 58. Kf3 {[%clk 0:00:06]}  Ke6 {[%clk 0:00:13]} 59. Bd4 {[%clk 0:00:06]}  f6 {[%clk 0:00:13]} 60. Bc3 {[%clk 0:00:05]}  Kd7 {[%clk 0:00:13]} 61. Bd4 {[%clk 0:00:06]}  Kc6 {[%clk 0:00:14]} 62. Bc3 {[%clk 0:00:06]}  Be5 {[%clk 0:00:09]} 63. Bb4 {[%clk 0:00:05]}  Bd6 {[%clk 0:00:08]} 64. Ba5 {[%clk 0:00:06]}  Kd7 {[%clk 0:00:08]} 65. Ke3 {[%clk 0:00:05]}  Ke6 {[%clk 0:00:07]} 66. Bc3 {[%clk 0:00:04]}  Bc5+ {[%clk 0:00:07]} 67. Kf3 {[%clk 0:00:03]}  Bd6 {[%clk 0:00:07]} 68. Bb2 {[%clk 0:00:04]}  Be5 {[%clk 0:00:06]} 69. Ba3 {[%clk 0:00:04]}  Bc7 {[%clk 0:00:05]} 70. Bb2 {[%clk 0:00:05]}  Bd6 {[%clk 0:00:05]} 71. Bc3 {[%clk 0:00:05]}  Be7 {[%clk 0:00:05]} 72. Bd4 {[%clk 0:00:06]}  Bf8 {[%clk 0:00:06]} 73. Bc3 {[%clk 0:00:06]}  Bd6 {[%clk 0:00:06]} 74. Bd2 {[%clk 0:00:06]}  Kd7 {[%clk 0:00:07]} 75. Be3 {[%clk 0:00:06]}  Kc6 {[%clk 0:00:07]} 76. Bd2 {[%clk 0:00:07]}  Kc5 {[%clk 0:00:06]} 77. Ba5 {[%clk 0:00:07]}  Be7 {[%clk 0:00:05]} 78. Bc7 {[%clk 0:00:06]}  Kc6 {[%clk 0:00:05]} 79. Bf4 {[%clk 0:00:06]}  Kd7 {[%clk 0:00:05]} 80. Bd2 {[%clk 0:00:05]}  Ke6 {[%clk 0:00:06]} 81. Bc3 {[%clk 0:00:06]}  Bd6 {[%clk 0:00:06]} 1/2-1/2


[Site "https://www.chess.com"]

[Event "Titled Tuesday Blitz March 01 Early 2022"]
[White "Lauridsen, Jesper Morch"]
[Black "Omariev, Maksim"]
[WhiteFideId "1401890"]
[BlackFideId "4193423"]
[WhiteElo "2162"]
[BlackElo "2448"]
[Result "1-0"]
[Round "04"]
[TimeControl "180+1"]
[Date "2022.03.01"]
[WhiteClock "0:00:46"]
[BlackClock "0:00:08"]

1. e4 {[%clk 0:03:00]}  c5 {[%clk 0:02:52]} 2. Nf3 {[%clk 0:02:55]}  d6 {[%clk 0:02:47]} 3. d4 {[%clk 0:02:55]}  cxd4 {[%clk 0:02:48]} 4. Nxd4 {[%clk 0:02:55]}  Nf6 {[%clk 0:02:48]} 5. Nc3 {[%clk 0:02:55]}  a6 {[%clk 0:02:49]} 6. Bc4 {[%clk 0:02:51]}  e6 {[%clk 0:02:49]} 7. a4 {[%clk 0:02:49]}  Be7 {[%clk 0:02:48]} 8. O-O {[%clk 0:02:48]}  O-O {[%clk 0:02:48]} 9. Ba2 {[%clk 0:02:44]}  Qc7 {[%clk 0:02:45]} 10. Bg5 {[%clk 0:02:36]}  h6 {[%clk 0:02:42]} 11. Be3 {[%clk 0:02:34]}  Nc6 {[%clk 0:02:41]} 12. h3 {[%clk 0:02:33]}  Bd7 {[%clk 0:02:33]} 13. Qd2 {[%clk 0:02:22]}  Nxd4 {[%clk 0:02:14]} 14. Bxd4 {[%clk 0:02:21]}  Bc6 {[%clk 0:02:15]} 15. Rae1 {[%clk 0:02:17]}  Nd7 {[%clk 0:02:06]} 16. f4 {[%clk 0:02:07]}  Nc5 {[%clk 0:01:59]} 17. Bxc5 {[%clk 0:02:02]}  dxc5 {[%clk 0:01:58]} 18. e5 {[%clk 0:02:03]}  Rfd8 {[%clk 0:01:58]} 19. Qf2 {[%clk 0:02:01]}  Rd4 {[%clk 0:01:52]} 20. f5 {[%clk 0:01:58]}  Bh4 {[%clk 0:01:18]} 21. g3 {[%clk 0:01:45]}  Bg5 {[%clk 0:01:18]} 22. fxe6 {[%clk 0:01:41]}  fxe6 {[%clk 0:01:17]} 23. Bxe6+ {[%clk 0:01:40]}  Kh8 {[%clk 0:01:16]} 24. h4 {[%clk 0:01:16]}  Rd2 {[%clk 0:01:11]} 25. Re2 {[%clk 0:01:10]}  Rxe2 {[%clk 0:01:09]} 26. Qxe2 {[%clk 0:01:09]}  Be7 {[%clk 0:01:00]} 27. Rf7 {[%clk 0:01:09]}  Be8 {[%clk 0:00:59]} 28. Nd5 {[%clk 0:01:04]}  Qd8 {[%clk 0:00:13]} 29. Rxe7 {[%clk 0:01:01]}  Bc6 {[%clk 0:00:13]} 30. Qg4 {[%clk 0:00:49]}  Qf8 {[%clk 0:00:13]} 31. Rf7 {[%clk 0:00:48]}  Qg8 {[%clk 0:00:11]} 32. Ne7 {[%clk 0:00:46]}  Qh7 {[%clk 0:00:08]} 33. Ng6+ {[%clk 0:00:46]} 1-0


[Site "https://www.chess.com"]

[Event "Titled Tuesday Blitz March 01 Early 2022"]
[White "Maatman, Nick"]
[Black "Samunenkov, Ihor"]
[WhiteFideId "1040391"]
[BlackFideId "14187086"]
[WhiteElo "2523"]
[BlackElo "2406"]
[Result "1-0"]
[Round "04"]
[TimeControl "180+1"]
[Date "2022.03.01"]
[WhiteClock "0:00:30"]
[BlackClock "0:00:41"]

1. d4 {[%clk 0:03:00]}  d5 {[%clk 0:02:59]} 2. c4 {[%clk 0:03:00]}  e6 {[%clk 0:02:59]} 3. Nf3 {[%clk 0:02:49]}  Nf6 {[%clk 0:02:58]} 4. g3 {[%clk 0:02:50]}  dxc4 {[%clk 0:02:52]} 5. Bg2 {[%clk 0:02:49]}  c6 {[%clk 0:02:52]} 6. O-O {[%clk 0:02:50]}  b5 {[%clk 0:02:50]} 7. a4 {[%clk 0:02:46]}  Bb7 {[%clk 0:02:47]} 8. Ne5 {[%clk 0:02:42]}  a6 {[%clk 0:02:34]} 9. Nc3 {[%clk 0:02:14]}  Nd5 {[%clk 0:02:31]} 10. e4 {[%clk 0:01:51]}  Nxc3 {[%clk 0:02:25]} 11. bxc3 {[%clk 0:01:52]}  Be7 {[%clk 0:02:24]} 12. Rb1 {[%clk 0:01:24]}  Qc7 {[%clk 0:02:04]} 13. Qg4 {[%clk 0:01:06]}  O-O {[%clk 0:01:53]} 14. Bh6 {[%clk 0:00:53]}  Bf6 {[%clk 0:01:52]} 15. Bf4 {[%clk 0:00:53]}  Qe7 {[%clk 0:01:50]} 16. Nxc4 {[%clk 0:00:42]}  bxc4 {[%clk 0:01:19]} 17. e5 {[%clk 0:00:41]}  Kh8 {[%clk 0:01:03]} 18. exf6 {[%clk 0:00:32]}  gxf6 {[%clk 0:01:04]} 19. Qh4 {[%clk 0:00:32]}  Rg8 {[%clk 0:00:47]} 20. Rxb7 {[%clk 0:00:30]}  Qxb7 {[%clk 0:00:40]} 21. Qxf6+ {[%clk 0:00:29]}  Rg7 {[%clk 0:00:41]} 22. Be5 {[%clk 0:00:30]} 1-0


[Site "https://www.chess.com"]

[Event "Titled Tuesday Blitz March 01 Early 2022"]
[White "Manelyuk, Daniil"]
[Black "Panesar Vedant"]
[WhiteFideId "44173920"]
[BlackFideId "35033018"]
[WhiteElo "2222"]
[BlackElo "1971"]
[Result "0-1"]
[Round "04"]
[TimeControl "180+1"]
[Date "2022.03.01"]
[WhiteClock "0:00:03"]
[BlackClock "0:00:15"]

1. e4 {[%clk 0:03:00]}  c6 {[%clk 0:02:58]} 2. d4 {[%clk 0:03:00]}  d5 {[%clk 0:02:59]} 3. Nc3 {[%clk 0:02:59]}  dxe4 {[%clk 0:02:59]} 4. Nxe4 {[%clk 0:03:00]}  Nf6 {[%clk 0:03:00]} 5. Nxf6+ {[%clk 0:03:00]}  exf6 {[%clk 0:03:01]} 6. c3 {[%clk 0:02:55]}  Bd6 {[%clk 0:03:02]} 7. Bd3 {[%clk 0:02:55]}  O-O {[%clk 0:03:03]} 8. Qc2 {[%clk 0:02:56]}  Re8+ {[%clk 0:03:04]} 9. Ne2 {[%clk 0:02:56]}  h5 {[%clk 0:03:04]} 10. O-O {[%clk 0:02:53]}  h4 {[%clk 0:02:59]} 11. h3 {[%clk 0:02:53]}  Nd7 {[%clk 0:02:59]} 12. Be3 {[%clk 0:02:51]}  Nf8 {[%clk 0:02:58]} 13. Rae1 {[%clk 0:02:51]}  Bc7 {[%clk 0:02:53]} 14. c4 {[%clk 0:02:36]}  g6 {[%clk 0:02:33]} 15. Bh6 {[%clk 0:02:25]}  Qd6 {[%clk 0:02:21]} 16. Nf4 {[%clk 0:02:07]}  Bd7 {[%clk 0:01:48]} 17. c5 {[%clk 0:01:09]}  Qxd4 {[%clk 0:01:45]} 18. Bxg6 {[%clk 0:01:08]}  Bxf4 {[%clk 0:01:20]} 19. Rd1 {[%clk 0:00:47]}  Qe5 {[%clk 0:01:19]} 20. Bxf8 {[%clk 0:00:42]}  Kxf8 {[%clk 0:01:09]} 21. Rxd7 {[%clk 0:00:36]}  fxg6 {[%clk 0:01:06]} 22. Qxg6 {[%clk 0:00:35]}  Re7 {[%clk 0:01:06]} 23. Rd6 {[%clk 0:00:30]}  Rf7 {[%clk 0:00:56]} 24. Rfd1 {[%clk 0:00:13]}  Re8 {[%clk 0:00:54]} 25. Rd8 {[%clk 0:00:10]}  Re7 {[%clk 0:00:33]} 26. g3 {[%clk 0:00:06]}  hxg3 {[%clk 0:00:31]} 27. fxg3 {[%clk 0:00:07]}  Be3+ {[%clk 0:00:28]} 28. Kh2 {[%clk 0:00:05]}  Qxb2+ {[%clk 0:00:26]} 29. Kh1 {[%clk 0:00:04]}  Qe5 {[%clk 0:00:17]} 30. Rxe8+ {[%clk 0:00:04]}  Rxe8 {[%clk 0:00:17]} 31. Rd6 {[%clk 0:00:03]}  Qe4+ {[%clk 0:00:17]} 32. Qxe4 {[%clk 0:00:03]}  Rxe4 {[%clk 0:00:18]} 33. Rxf6+ {[%clk 0:00:03]}  Ke7 {[%clk 0:00:18]} 34. Rg6 {[%clk 0:00:03]}  Rb4 {[%clk 0:00:18]} 35. Rg7+ {[%clk 0:00:03]}  Kf6 {[%clk 0:00:18]} 36. Rc7 {[%clk 0:00:03]}  Bxc5 {[%clk 0:00:18]} 37. h4 {[%clk 0:00:03]}  Rb2 {[%clk 0:00:17]} 38. g4 {[%clk 0:00:03]}  Be3 {[%clk 0:00:15]} 0-1


[Site "https://www.chess.com"]

[Event "Titled Tuesday Blitz March 01 Early 2022"]
[White "Manolache, Marius"]
[Black "Mikhnenko, Alexander"]
[WhiteFideId "1201530"]
[BlackFideId "34143014"]
[WhiteElo "2389"]
[BlackElo "2140"]
[Result "0-1"]
[Round "04"]
[TimeControl "180+1"]
[Date "2022.03.01"]
[WhiteClock "0:00:23"]
[BlackClock "0:01:15"]

1. d4 {[%clk 0:03:00]}  Nf6 {[%clk 0:02:59]} 2. Bg5 {[%clk 0:02:57]}  c5 {[%clk 0:02:58]} 3. d5 {[%clk 0:02:57]}  Qb6 {[%clk 0:02:57]} 4. Nc3 {[%clk 0:02:57]}  d6 {[%clk 0:02:51]} 5. Rb1 {[%clk 0:02:56]}  Nbd7 {[%clk 0:02:51]} 6. e4 {[%clk 0:02:55]}  h6 {[%clk 0:02:50]} 7. Bd2 {[%clk 0:02:53]}  g5 {[%clk 0:02:48]} 8. h3 {[%clk 0:02:52]}  Bg7 {[%clk 0:02:48]} 9. Nf3 {[%clk 0:02:52]}  O-O {[%clk 0:02:47]} 10. Bc4 {[%clk 0:02:50]}  a6 {[%clk 0:02:44]} 11. a4 {[%clk 0:02:48]}  Qc7 {[%clk 0:02:44]} 12. O-O {[%clk 0:02:46]}  Rb8 {[%clk 0:02:44]} 13. Re1 {[%clk 0:02:45]}  Ne5 {[%clk 0:02:43]} 14. Nxe5 {[%clk 0:02:43]}  dxe5 {[%clk 0:02:44]} 15. b3 {[%clk 0:02:29]}  g4 {[%clk 0:02:38]} 16. hxg4 {[%clk 0:02:26]}  Bxg4 {[%clk 0:02:34]} 17. Qc1 {[%clk 0:02:24]}  Kh7 {[%clk 0:02:32]} 18. Bf1 {[%clk 0:02:22]}  Rg8 {[%clk 0:02:24]} 19. Nd1 {[%clk 0:02:21]}  b5 {[%clk 0:02:23]} 20. axb5 {[%clk 0:02:20]}  axb5 {[%clk 0:02:24]} 21. Ne3 {[%clk 0:02:20]}  Bd7 {[%clk 0:02:20]} 22. f3 {[%clk 0:02:17]}  Nh5 {[%clk 0:02:17]} 23. Nf5 {[%clk 0:02:13]}  Bxf5 {[%clk 0:02:16]} 24. exf5 {[%clk 0:02:12]}  Nf4 {[%clk 0:02:13]} 25. c4 {[%clk 0:02:09]}  b4 {[%clk 0:02:10]} 26. Qc2 {[%clk 0:02:02]}  Bf6 {[%clk 0:02:09]} 27. Bxf4 {[%clk 0:01:54]}  exf4 {[%clk 0:02:09]} 28. Re4 {[%clk 0:01:52]}  Rg5 {[%clk 0:02:05]} 29. Rbe1 {[%clk 0:01:48]}  Kh8 {[%clk 0:02:02]} 30. Qc1 {[%clk 0:01:44]}  Bd4+ {[%clk 0:01:54]} 31. Rxd4 {[%clk 0:01:44]}  cxd4 {[%clk 0:01:55]} 32. Re4 {[%clk 0:01:42]}  Qc5 {[%clk 0:01:53]} 33. Qd2 {[%clk 0:01:36]}  d3+ {[%clk 0:01:51]} 34. Qf2 {[%clk 0:01:36]}  Qxf2+ {[%clk 0:01:50]} 35. Kxf2 {[%clk 0:01:36]}  d2 {[%clk 0:01:50]} 36. Rd4 {[%clk 0:01:35]}  Rxf5 {[%clk 0:01:50]} 37. Rxd2 {[%clk 0:01:35]}  Re5 {[%clk 0:01:50]} 38. c5 {[%clk 0:01:28]}  e6 {[%clk 0:01:48]} 39. dxe6 {[%clk 0:01:24]}  fxe6 {[%clk 0:01:46]} 40. Bc4 {[%clk 0:01:18]}  Rxc5 {[%clk 0:01:45]} 41. Bxe6 {[%clk 0:01:17]}  Re8 {[%clk 0:01:45]} 42. Bc4 {[%clk 0:01:17]}  Rb8 {[%clk 0:01:41]} 43. Rd4 {[%clk 0:01:16]}  Rf8 {[%clk 0:01:39]} 44. Rd6 {[%clk 0:01:11]}  Ra5 {[%clk 0:01:32]} 45. Rxh6+ {[%clk 0:01:10]}  Kg7 {[%clk 0:01:33]} 46. Rb6 {[%clk 0:01:06]}  Ra2+ {[%clk 0:01:33]} 47. Kf1 {[%clk 0:01:04]}  Rd8 {[%clk 0:01:32]} 48. Rb7+ {[%clk 0:00:57]}  Kh6 {[%clk 0:01:28]} 49. Kg1 {[%clk 0:00:55]}  Rdd2 {[%clk 0:01:25]} 50. Rxb4 {[%clk 0:00:46]}  Rxg2+ {[%clk 0:01:24]} 51. Kh1 {[%clk 0:00:46]}  Rgb2 {[%clk 0:01:18]} 52. Rb6+ {[%clk 0:00:44]}  Kg5 {[%clk 0:01:18]} 53. Bf1 {[%clk 0:00:32]}  Ra1 {[%clk 0:01:17]} 54. Kg1 {[%clk 0:00:32]}  Rbb1 {[%clk 0:01:16]} 55. Kf2 {[%clk 0:00:28]}  Rxf1+ {[%clk 0:01:16]} 56. Ke2 {[%clk 0:00:28]}  Rfb1 {[%clk 0:01:16]} 57. Kd3 {[%clk 0:00:27]}  Ra3 {[%clk 0:01:16]} 58. Kc4 {[%clk 0:00:26]}  Raxb3 {[%clk 0:01:14]} 59. Rxb3 {[%clk 0:00:23]}  Rxb3 {[%clk 0:01:15]} 60. Kxb3 {[%clk 0:00:23]}  Kh4 {[%clk 0:01:15]} 0-1


[Site "https://www.chess.com"]